[Event "Early Titled Tuesday Blitz | February 8 2022"]
[White "Namitbir Singh Walia"]
[Black "Al-Tarboush, Ward"]
[WhiteFideId "35071068"]
[BlackFideId "7601450"]
[WhiteElo "1479"]
[BlackElo "2276"]
[Result "1-0"]
[Round "05"]
[TimeControl "180+1"]
[Date "2022.02.08"]
[WhiteClock "0:00:17"]
[BlackClock "0:00:05"]

1. d4 {[%clk 0:03:00]}  d5 {[%clk 0:03:00]} 2. c4 {[%clk 0:03:00]}  c6 {[%clk 0:03:00]} 3. Nf3 {[%clk 0:03:00]}  Nf6 {[%clk 0:03:00]} 4. g3 {[%clk 0:03:00]}  g6 {[%clk 0:03:00]} 5. Bg2 {[%clk 0:02:59]}  Bg7 {[%clk 0:03:00]} 6. cxd5 {[%clk 0:02:46]}  cxd5 {[%clk 0:03:01]} 7. Nc3 {[%clk 0:02:46]}  O-O {[%clk 0:03:02]} 8. Ne5 {[%clk 0:02:45]}  Nc6 {[%clk 0:03:01]} 9. Nxc6 {[%clk 0:02:39]}  bxc6 {[%clk 0:03:02]} 10. O-O {[%clk 0:02:37]}  Bf5 {[%clk 0:03:02]} 11. b3 {[%clk 0:02:30]}  Qd7 {[%clk 0:03:02]} 12. Ba3 {[%clk 0:02:29]}  Rfe8 {[%clk 0:03:00]} 13. Rc1 {[%clk 0:02:23]}  Bh3 {[%clk 0:02:57]} 14. Na4 {[%clk 0:02:19]}  Bxg2 {[%clk 0:02:52]} 15. Kxg2 {[%clk 0:02:20]}  Ne4 {[%clk 0:02:48]} 16. Nc5 {[%clk 0:02:14]}  Qf5 {[%clk 0:02:46]} 17. Qd3 {[%clk 0:02:06]}  e5 {[%clk 0:02:39]} 18. dxe5 {[%clk 0:01:53]}  Qxe5 {[%clk 0:02:40]} 19. Nxe4 {[%clk 0:01:49]}  dxe4 {[%clk 0:02:41]} 20. Qe3 {[%clk 0:01:44]}  Qe6 {[%clk 0:02:37]} 21. Rfd1 {[%clk 0:01:40]}  Bf8 {[%clk 0:02:16]} 22. Bb2 {[%clk 0:01:34]}  f6 {[%clk 0:01:33]} 23. Qc3 {[%clk 0:01:22]}  e3 {[%clk 0:01:33]} 24. Qxf6 {[%clk 0:01:19]}  Qxf6 {[%clk 0:01:31]} 25. Bxf6 {[%clk 0:01:20]}  exf2 {[%clk 0:01:31]} 26. Kxf2 {[%clk 0:01:20]}  Ba3 {[%clk 0:01:30]} 27. Rxc6 {[%clk 0:01:19]}  Rf8 {[%clk 0:01:28]} 28. Rd7 {[%clk 0:01:19]}  Rf7 {[%clk 0:01:27]} 29. Rxf7 {[%clk 0:01:16]}  Kxf7 {[%clk 0:01:28]} 30. Bd4 {[%clk 0:01:15]}  a5 {[%clk 0:01:19]} 31. Rc7+ {[%clk 0:01:13]}  Ke6 {[%clk 0:01:20]} 32. Rxh7 {[%clk 0:01:11]}  Kd5 {[%clk 0:01:20]} 33. e3 {[%clk 0:01:01]}  Rc8 {[%clk 0:01:19]} 34. Kf3 {[%clk 0:00:31]}  Rc2 {[%clk 0:01:19]} 35. Rh6 {[%clk 0:00:30]}  Rxa2 {[%clk 0:01:15]} 36. Rxg6 {[%clk 0:00:30]}  Bb4 {[%clk 0:01:15]} 37. Rg5+ {[%clk 0:00:26]}  Ke6 {[%clk 0:01:14]} 38. h4 {[%clk 0:00:20]}  Ra3 {[%clk 0:01:14]} 39. h5 {[%clk 0:00:20]}  Bf8 {[%clk 0:01:11]} 40. Bg7 {[%clk 0:00:15]}  Bxg7 {[%clk 0:00:51]} 41. Rxg7 {[%clk 0:00:16]}  Rxb3 {[%clk 0:00:51]} 42. Ra7 {[%clk 0:00:12]}  Rb5 {[%clk 0:00:50]} 43. g4 {[%clk 0:00:11]}  Kf6 {[%clk 0:00:50]} 44. Kf4 {[%clk 0:00:11]}  Rc5 {[%clk 0:00:41]} 45. e4 {[%clk 0:00:11]}  Rb5 {[%clk 0:00:36]} 46. g5+ {[%clk 0:00:11]}  Ke6 {[%clk 0:00:34]} 47. h6 {[%clk 0:00:11]}  Rb1 {[%clk 0:00:31]} 48. Rxa5 {[%clk 0:00:09]}  Rh1 {[%clk 0:00:26]} 49. Ra7 {[%clk 0:00:08]}  Rh4+ {[%clk 0:00:23]} 50. Kg3 {[%clk 0:00:06]}  Rh1 {[%clk 0:00:22]} 51. Kg4 {[%clk 0:00:06]}  Rh2 {[%clk 0:00:20]} 52. Rg7 {[%clk 0:00:05]}  Ke5 {[%clk 0:00:16]} 53. Re7+ {[%clk 0:00:05]}  Kd6 {[%clk 0:00:16]} 54. Re8 {[%clk 0:00:04]}  Kd7 {[%clk 0:00:15]} 55. Re5 {[%clk 0:00:03]}  Kd6 {[%clk 0:00:15]} 56. Rf5 {[%clk 0:00:03]}  Ke6 {[%clk 0:00:14]} 57. Rf6+ {[%clk 0:00:04]}  Ke5 {[%clk 0:00:13]} 58. Rf5+ {[%clk 0:00:03]}  Ke6 {[%clk 0:00:12]} 59. Rf8 {[%clk 0:00:04]}  Ke7 {[%clk 0:00:11]} 60. Rf6 {[%clk 0:00:05]}  Rh1 {[%clk 0:00:10]} 61. Kf5 {[%clk 0:00:06]}  Ke8 {[%clk 0:00:09]} 62. Kg6 {[%clk 0:00:07]}  Rh2 {[%clk 0:00:08]} 63. Kg7 {[%clk 0:00:08]}  Ke7 {[%clk 0:00:08]} 64. h7 {[%clk 0:00:08]}  Rh5 {[%clk 0:00:07]} 65. g6 {[%clk 0:00:07]}  Rh1 {[%clk 0:00:04]} 66. Rf7+ {[%clk 0:00:07]}  Ke6 {[%clk 0:00:03]} 67. h8=Q {[%clk 0:00:08]}  Rxh8 {[%clk 0:00:02]} 68. Kxh8 {[%clk 0:00:09]}  Ke5 {[%clk 0:00:03]} 69. Kg8 {[%clk 0:00:10]}  Kxe4 {[%clk 0:00:03]} 70. Kf8 {[%clk 0:00:11]}  Ke5 {[%clk 0:00:03]} 71. g7 {[%clk 0:00:12]}  Ke6 {[%clk 0:00:03]} 72. g8=Q {[%clk 0:00:13]}  Ke5 {[%clk 0:00:03]} 73. Qg6 {[%clk 0:00:13]}  Kd4 {[%clk 0:00:03]} 74. Rf5 {[%clk 0:00:14]}  Ke3 {[%clk 0:00:04]} 75. Qg4 {[%clk 0:00:15]}  Kd2 {[%clk 0:00:04]} 76. Rf3 {[%clk 0:00:16]}  Ke1 {[%clk 0:00:05]} 77. Qg2 {[%clk 0:00:17]} 1-0


[Site "https://www.chess.com"]

[Event "Early Titled Tuesday Blitz | February 8 2022"]
[White "Nepomniachtchi, Ian"]
[Black "Samunenkov, Ihor"]
[WhiteFideId "4168119"]
[BlackFideId "14187086"]
[WhiteElo "2740"]
[BlackElo "2406"]
[Result "1-0"]
[Round "05"]
[TimeControl "180+1"]
[Date "2022.02.08"]
[WhiteClock "0:01:26"]
[BlackClock "0:00:31"]

1. e4 {[%clk 0:03:00]}  c6 {[%clk 0:02:59]} 2. d4 {[%clk 0:02:58]}  d5 {[%clk 0:03:00]} 3. f3 {[%clk 0:02:59]}  e6 {[%clk 0:02:59]} 4. Nc3 {[%clk 0:02:48]}  Qb6 {[%clk 0:02:59]} 5. a3 {[%clk 0:02:46]}  Nf6 {[%clk 0:02:56]} 6. Be3 {[%clk 0:02:41]}  dxe4 {[%clk 0:02:56]} 7. fxe4 {[%clk 0:02:41]}  Ng4 {[%clk 0:02:54]} 8. Qxg4 {[%clk 0:02:20]}  Qxb2 {[%clk 0:02:52]} 9. Rd1 {[%clk 0:02:15]}  Qxc3+ {[%clk 0:02:46]} 10. Bd2 {[%clk 0:02:16]}  Qxc2 {[%clk 0:02:25]} 11. Nf3 {[%clk 0:02:15]}  Nd7 {[%clk 0:02:19]} 12. e5 {[%clk 0:02:09]}  Qg6 {[%clk 0:01:59]} 13. Qf4 {[%clk 0:02:08]}  Be7 {[%clk 0:01:55]} 14. Be3 {[%clk 0:02:03]}  Nb6 {[%clk 0:01:41]} 15. Bf2 {[%clk 0:01:56]}  Nd5 {[%clk 0:01:39]} 16. Qc1 {[%clk 0:01:51]}  Qe4+ {[%clk 0:01:36]} 17. Be2 {[%clk 0:01:48]}  Nf4 {[%clk 0:01:37]} 18. Rd2 {[%clk 0:01:48]}  Nxg2+ {[%clk 0:01:26]} 19. Kf1 {[%clk 0:01:48]}  Ne3+ {[%clk 0:01:25]} 20. Bxe3 {[%clk 0:01:38]}  Qxe3 {[%clk 0:01:25]} 21. Rg1 {[%clk 0:01:39]}  O-O {[%clk 0:01:22]} 22. Rg3 {[%clk 0:01:36]}  f6 {[%clk 0:01:14]} 23. Bd3 {[%clk 0:01:33]}  fxe5 {[%clk 0:01:04]} 24. Rxg7+ {[%clk 0:01:31]}  Kxg7 {[%clk 0:00:49]} 25. Rg2+ {[%clk 0:01:29]}  Qg5 {[%clk 0:00:40]} 26. Rxg5+ {[%clk 0:01:28]}  Bxg5 {[%clk 0:00:39]} 27. Qxg5+ {[%clk 0:01:28]}  Kh8 {[%clk 0:00:40]} 28. Qxe5+ {[%clk 0:01:28]}  Kg8 {[%clk 0:00:40]} 29. Qg5+ {[%clk 0:01:27]}  Kh8 {[%clk 0:00:40]} 30. Ke2 {[%clk 0:01:27]}  Bd7 {[%clk 0:00:36]} 31. Qe7 {[%clk 0:01:26]}  Rad8 {[%clk 0:00:31]} 32. Qxh7# {[%clk 0:01:26]} 1-0


[Site "https://www.chess.com"]

[Event "Early Titled Tuesday Blitz | February 8 2022"]
[White "Nesterov, Arseniy"]
[Black "Mohammad Fahad, Rahman"]
[WhiteFideId "24198455"]
[BlackFideId "10207791"]
[WhiteElo "2489"]
[BlackElo "2323"]
[Result "1-0"]
[Round "05"]
[TimeControl "180+1"]
[Date "2022.02.08"]
[WhiteClock "0:00:29"]
[BlackClock "0:00:01"]

1. d4 {[%clk 0:03:00]}  d5 {[%clk 0:02:56]} 2. c4 {[%clk 0:03:00]}  c6 {[%clk 0:02:56]} 3. Nc3 {[%clk 0:02:59]}  Nf6 {[%clk 0:02:56]} 4. e3 {[%clk 0:02:58]}  e6 {[%clk 0:02:49]} 5. Nf3 {[%clk 0:02:57]}  Nbd7 {[%clk 0:02:48]} 6. Bd3 {[%clk 0:02:57]}  dxc4 {[%clk 0:02:47]} 7. Bxc4 {[%clk 0:02:58]}  b5 {[%clk 0:02:46]} 8. Bd3 {[%clk 0:02:58]}  Bb7 {[%clk 0:02:45]} 9. O-O {[%clk 0:02:58]}  Bd6 {[%clk 0:02:44]} 10. b3 {[%clk 0:02:52]}  O-O {[%clk 0:02:41]} 11. Bb2 {[%clk 0:02:51]}  Qe7 {[%clk 0:02:30]} 12. Ne4 {[%clk 0:02:41]}  Nxe4 {[%clk 0:02:27]} 13. Bxe4 {[%clk 0:02:42]}  a6 {[%clk 0:01:18]} 14. Rc1 {[%clk 0:02:39]}  Rac8 {[%clk 0:01:14]} 15. Nd2 {[%clk 0:02:01]}  Nf6 {[%clk 0:01:11]} 16. Bf3 {[%clk 0:02:01]}  Rfd8 {[%clk 0:01:02]} 17. Ne4 {[%clk 0:01:40]}  Nxe4 {[%clk 0:00:56]} 18. Bxe4 {[%clk 0:01:41]}  c5 {[%clk 0:00:57]} 19. Bxb7 {[%clk 0:01:39]}  Qxb7 {[%clk 0:00:58]} 20. dxc5 {[%clk 0:01:23]}  Bxh2+ {[%clk 0:00:44]} 21. Kxh2 {[%clk 0:01:24]}  Rxd1 {[%clk 0:00:45]} 22. Rfxd1 {[%clk 0:01:25]}  Qc7+ {[%clk 0:00:29]} 23. Kg1 {[%clk 0:01:20]}  b4 {[%clk 0:00:29]} 24. c6 {[%clk 0:01:12]}  h6 {[%clk 0:00:20]} 25. Rd7 {[%clk 0:01:09]}  Qa5 {[%clk 0:00:17]} 26. c7 {[%clk 0:01:06]}  Kh7 {[%clk 0:00:16]} 27. Rxf7 {[%clk 0:01:04]}  Kg6 {[%clk 0:00:10]} 28. Rxg7+ {[%clk 0:01:02]}  Kf5 {[%clk 0:00:11]} 29. g4+ {[%clk 0:00:40]}  Ke4 {[%clk 0:00:10]} 30. Rc4+ {[%clk 0:00:41]}  Kf3 {[%clk 0:00:09]} 31. Kf1 {[%clk 0:00:32]}  Rf8 {[%clk 0:00:01]} 32. c8=Q {[%clk 0:00:29]}  Rxc8 {[%clk 0:00:01]} 33. Rf4# {[%clk 0:00:29]} 1-0


[Site "https://www.chess.com"]

[Event "Early Titled Tuesday Blitz | February 8 2022"]
[White "Niemann, Hans Moke"]
[Black "Fawzy, Adham"]
[WhiteFideId "2093596"]
[BlackFideId "10613129"]
[WhiteElo "2636"]
[BlackElo "2510"]
[Result "1-0"]
[Round "05"]
[TimeControl "180+1"]
[Date "2022.02.08"]
[WhiteClock "0:00:20"]
[BlackClock "0:00:01"]

1. d4 {[%clk 0:03:00]}  Nf6 {[%clk 0:02:59]} 2. Nc3 {[%clk 0:03:01]}  d5 {[%clk 0:02:59]} 3. Bf4 {[%clk 0:03:01]}  g6 {[%clk 0:02:50]} 4. e3 {[%clk 0:02:59]}  Bg7 {[%clk 0:02:51]} 5. Nb5 {[%clk 0:03:00]}  Na6 {[%clk 0:02:51]} 6. h3 {[%clk 0:03:00]}  O-O {[%clk 0:02:50]} 7. Nf3 {[%clk 0:03:00]}  c6 {[%clk 0:02:45]} 8. Nc3 {[%clk 0:03:00]}  Re8 {[%clk 0:02:41]} 9. Be2 {[%clk 0:02:53]}  Nd7 {[%clk 0:02:41]} 10. O-O {[%clk 0:02:29]}  Nc7 {[%clk 0:02:36]} 11. e4 {[%clk 0:02:29]}  dxe4 {[%clk 0:02:14]} 12. Nxe4 {[%clk 0:02:30]}  Nf6 {[%clk 0:02:14]} 13. Bd3 {[%clk 0:02:25]}  Ne6 {[%clk 0:02:08]} 14. Be3 {[%clk 0:02:16]}  Nd5 {[%clk 0:02:02]} 15. Bc4 {[%clk 0:02:16]}  Nec7 {[%clk 0:01:41]} 16. Bb3 {[%clk 0:02:09]}  Bf5 {[%clk 0:01:37]} 17. Ng3 {[%clk 0:02:08]}  Be6 {[%clk 0:01:37]} 18. Bd2 {[%clk 0:02:08]}  a5 {[%clk 0:01:34]} 19. a3 {[%clk 0:02:07]}  a4 {[%clk 0:01:31]} 20. Ba2 {[%clk 0:02:06]}  Nf6 {[%clk 0:01:30]} 21. Bb1 {[%clk 0:01:46]}  b5 {[%clk 0:01:23]} 22. c3 {[%clk 0:01:44]}  Bb3 {[%clk 0:01:21]} 23. Bc2 {[%clk 0:01:43]}  Bxc2 {[%clk 0:01:13]} 24. Qxc2 {[%clk 0:01:44]}  Nd7 {[%clk 0:01:13]} 25. Rfe1 {[%clk 0:01:42]}  e5 {[%clk 0:01:13]} 26. Bg5 {[%clk 0:01:35]}  Qb8 {[%clk 0:01:07]} 27. Ne4 {[%clk 0:01:31]}  Nd5 {[%clk 0:01:05]} 28. c4 {[%clk 0:01:22]}  bxc4 {[%clk 0:01:05]} 29. Qxc4 {[%clk 0:01:23]}  Qb5 {[%clk 0:01:01]} 30. Qxb5 {[%clk 0:01:19]}  cxb5 {[%clk 0:01:02]} 31. Nd6 {[%clk 0:01:18]}  Re6 {[%clk 0:00:32]} 32. Nxb5 {[%clk 0:01:18]}  e4 {[%clk 0:00:26]} 33. Nd2 {[%clk 0:01:18]}  f5 {[%clk 0:00:27]} 34. Nf1 {[%clk 0:00:57]}  Rb8 {[%clk 0:00:19]} 35. Nc3 {[%clk 0:00:58]}  N7b6 {[%clk 0:00:19]} 36. Ne3 {[%clk 0:00:56]}  Rd6 {[%clk 0:00:15]} 37. Rad1 {[%clk 0:00:52]}  Ra8 {[%clk 0:00:16]} 38. g4 {[%clk 0:00:48]}  Nxe3 {[%clk 0:00:15]} 39. fxe3 {[%clk 0:00:47]}  Nc4 {[%clk 0:00:15]} 40. Re2 {[%clk 0:00:45]}  Rb6 {[%clk 0:00:15]} 41. gxf5 {[%clk 0:00:40]}  gxf5 {[%clk 0:00:16]} 42. Rf1 {[%clk 0:00:39]}  h6 {[%clk 0:00:14]} 43. Bf4 {[%clk 0:00:38]}  Rxb2 {[%clk 0:00:12]} 44. Rxb2 {[%clk 0:00:37]}  Nxb2 {[%clk 0:00:13]} 45. Nb5 {[%clk 0:00:31]}  Nc4 {[%clk 0:00:08]} 46. Rc1 {[%clk 0:00:31]}  Nd2 {[%clk 0:00:07]} 47. Rc5 {[%clk 0:00:28]}  Rf8 {[%clk 0:00:04]} 48. Nd6 {[%clk 0:00:27]}  Nf3+ {[%clk 0:00:03]} 49. Kg2 {[%clk 0:00:27]}  Rf6 {[%clk 0:00:02]} 50. Nxf5 {[%clk 0:00:25]}  Bf8 {[%clk 0:00:03]} 51. Ra5 {[%clk 0:00:24]}  Rg6+ {[%clk 0:00:03]} 52. Kf2 {[%clk 0:00:24]}  Rb6 {[%clk 0:00:02]} 53. Ra8 {[%clk 0:00:20]}  Kf7 {[%clk 0:00:03]} 54. Ra7+ {[%clk 0:00:20]}  Kg8 {[%clk 0:00:02]} 55. Ne7+ {[%clk 0:00:19]}  Bxe7 {[%clk 0:00:01]} 56. Rxe7 {[%clk 0:00:20]} 1-0


[Site "https://www.chess.com"]

[Event "Early Titled Tuesday Blitz | February 8 2022"]
[White "Nilsen, Tobias Lang"]
[Black "Kazarian, Anna-Maja"]
[WhiteFideId "1521624"]
[BlackFideId "1033689"]
[WhiteElo "2013"]
[BlackElo "2004"]
[Result "1-0"]
[Round "05"]
[TimeControl "180+1"]
[Date "2022.02.08"]
[WhiteClock "0:00:07"]
[BlackClock "0:00:02"]

1. f4 {[%clk 0:02:55]}  Nf6 {[%clk 0:03:00]} 2. Nf3 {[%clk 0:02:46]}  b6 {[%clk 0:02:57]} 3. g3 {[%clk 0:02:45]}  Bb7 {[%clk 0:02:57]} 4. Bg2 {[%clk 0:02:46]}  e6 {[%clk 0:02:57]} 5. O-O {[%clk 0:02:46]}  Be7 {[%clk 0:02:57]} 6. d3 {[%clk 0:02:44]}  d5 {[%clk 0:02:56]} 7. e4 {[%clk 0:02:39]}  dxe4 {[%clk 0:02:55]} 8. Ng5 {[%clk 0:02:38]}  O-O {[%clk 0:02:24]} 9. Nxe4 {[%clk 0:02:34]}  Nxe4 {[%clk 0:02:19]} 10. dxe4 {[%clk 0:02:35]}  Bc5+ {[%clk 0:02:15]} 11. Kh1 {[%clk 0:02:34]}  Qf6 {[%clk 0:02:16]} 12. Qe2 {[%clk 0:02:21]}  Nc6 {[%clk 0:02:06]} 13. c3 {[%clk 0:02:19]}  Rfd8 {[%clk 0:02:02]} 14. Be3 {[%clk 0:02:06]}  Bxe3 {[%clk 0:01:53]} 15. Qxe3 {[%clk 0:02:07]}  Qe7 {[%clk 0:01:50]} 16. e5 {[%clk 0:02:03]}  Na5 {[%clk 0:01:47]} 17. Bxb7 {[%clk 0:01:54]}  Nxb7 {[%clk 0:01:48]} 18. Nd2 {[%clk 0:01:44]}  Qc5 {[%clk 0:01:40]} 19. Qxc5 {[%clk 0:01:20]}  Nxc5 {[%clk 0:01:38]} 20. Nf3 {[%clk 0:01:16]}  Rd3 {[%clk 0:01:32]} 21. Nd4 {[%clk 0:01:12]}  Na4 {[%clk 0:01:27]} 22. Rab1 {[%clk 0:01:05]}  c5 {[%clk 0:01:22]} 23. Nb5 {[%clk 0:00:59]}  a6 {[%clk 0:01:17]} 24. Nd6 {[%clk 0:00:55]}  Rd2 {[%clk 0:01:13]} 25. Nc4 {[%clk 0:00:55]}  Rc2 {[%clk 0:01:07]} 26. Rbc1 {[%clk 0:00:45]}  Rxc1 {[%clk 0:01:03]} 27. Rxc1 {[%clk 0:00:46]}  b5 {[%clk 0:01:04]} 28. b3 {[%clk 0:00:38]}  bxc4 {[%clk 0:00:50]} 29. bxa4 {[%clk 0:00:39]}  Rb8 {[%clk 0:00:34]} 30. Rc2 {[%clk 0:00:38]}  Kf8 {[%clk 0:00:28]} 31. Kg2 {[%clk 0:00:36]}  Ke7 {[%clk 0:00:28]} 32. Kf3 {[%clk 0:00:35]}  Rb1 {[%clk 0:00:28]} 33. h4 {[%clk 0:00:19]}  f6 {[%clk 0:00:28]} 34. exf6+ {[%clk 0:00:19]}  Kxf6 {[%clk 0:00:27]} 35. g4 {[%clk 0:00:18]}  h6 {[%clk 0:00:23]} 36. Re2 {[%clk 0:00:17]}  Rc1 {[%clk 0:00:18]} 37. Re3 {[%clk 0:00:17]}  Rc2 {[%clk 0:00:18]} 38. Ke4 {[%clk 0:00:17]}  Rxa2 {[%clk 0:00:14]} 39. g5+ {[%clk 0:00:17]}  hxg5 {[%clk 0:00:14]} 40. hxg5+ {[%clk 0:00:18]}  Kf7 {[%clk 0:00:13]} 41. Ke5 {[%clk 0:00:19]}  Rxa4 {[%clk 0:00:13]} 42. Rg3 {[%clk 0:00:15]}  Ra1 {[%clk 0:00:07]} 43. Kd6 {[%clk 0:00:13]}  Rf1 {[%clk 0:00:04]} 44. Rg4 {[%clk 0:00:10]}  a5 {[%clk 0:00:02]} 45. Kxc5 {[%clk 0:00:11]}  Kg6 {[%clk 0:00:03]} 46. Rg3 {[%clk 0:00:07]}  Rxf4 {[%clk 0:00:02]} 47. Kb5 {[%clk 0:00:07]}  Rf5+ {[%clk 0:00:02]} 48. Kxc4 {[%clk 0:00:06]}  Rxg5 {[%clk 0:00:03]} 49. Re3 {[%clk 0:00:06]}  Kf6 {[%clk 0:00:03]} 50. Rf3+ {[%clk 0:00:05]}  Rf5 {[%clk 0:00:04]} 51. Rg3 {[%clk 0:00:05]}  g5 {[%clk 0:00:04]} 52. Kd4 {[%clk 0:00:05]}  a4 {[%clk 0:00:03]} 53. c4 {[%clk 0:00:05]}  Rf4+ {[%clk 0:00:03]} 54. Kc5 {[%clk 0:00:05]}  g4 {[%clk 0:00:03]} 55. Kb5 {[%clk 0:00:06]}  e5 {[%clk 0:00:03]} 56. Kxa4 {[%clk 0:00:06]}  Kf5 {[%clk 0:00:03]} 57. Kb5 {[%clk 0:00:06]}  Rf3 {[%clk 0:00:04]} 58. Rg1 {[%clk 0:00:06]}  Rc3 {[%clk 0:00:03]} 59. c5 {[%clk 0:00:06]}  g3 {[%clk 0:00:02]} 60. Kb4 {[%clk 0:00:07]}  Rc2 {[%clk 0:00:02]} 61. Rxg3 {[%clk 0:00:07]} 1-0


[Site "https://www.chess.com"]

[Event "Early Titled Tuesday Blitz | February 8 2022"]
[White "Orozbaev, Eldiar"]
[Black "Sjugirov, Sanan"]
[WhiteFideId "13802240"]
[BlackFideId "4189302"]
[WhiteElo "2050"]
[BlackElo "2602"]
[Result "1-0"]
[Round "05"]
[TimeControl "180+1"]
[Date "2022.02.08"]
[WhiteClock "0:00:08"]
[BlackClock "0:00:22"]

1. e4 {[%clk 0:02:47]}  c5 {[%clk 0:02:59]} 2. c3 {[%clk 0:02:47]}  Nf6 {[%clk 0:02:58]} 3. e5 {[%clk 0:02:47]}  Nd5 {[%clk 0:02:58]} 4. d4 {[%clk 0:02:48]}  cxd4 {[%clk 0:02:59]} 5. cxd4 {[%clk 0:02:49]}  d6 {[%clk 0:02:58]} 6. Nf3 {[%clk 0:02:50]}  Nc6 {[%clk 0:02:58]} 7. Nc3 {[%clk 0:02:50]}  Nxc3 {[%clk 0:02:53]} 8. bxc3 {[%clk 0:02:51]}  d5 {[%clk 0:02:50]} 9. Bd3 {[%clk 0:02:51]}  Bg4 {[%clk 0:02:50]} 10. Rb1 {[%clk 0:02:49]}  Qc7 {[%clk 0:02:46]} 11. Qb3 {[%clk 0:02:22]}  Na5 {[%clk 0:02:17]} 12. Bb5+ {[%clk 0:02:04]}  Bd7 {[%clk 0:02:16]} 13. Qxd5 {[%clk 0:02:00]}  Nc6 {[%clk 0:01:58]} 14. Ng5 {[%clk 0:01:47]}  e6 {[%clk 0:01:58]} 15. Qf3 {[%clk 0:01:46]}  Nd8 {[%clk 0:01:59]} 16. O-O {[%clk 0:01:32]}  Be7 {[%clk 0:01:56]} 17. Bxd7+ {[%clk 0:01:29]}  Qxd7 {[%clk 0:01:57]} 18. Rd1 {[%clk 0:01:20]}  O-O {[%clk 0:01:55]} 19. Ne4 {[%clk 0:01:17]}  Rc8 {[%clk 0:01:54]} 20. Nf6+ {[%clk 0:01:14]}  Bxf6 {[%clk 0:01:36]} 21. exf6 {[%clk 0:01:15]}  Qd5 {[%clk 0:01:35]} 22. Qxd5 {[%clk 0:01:01]}  exd5 {[%clk 0:01:35]} 23. fxg7 {[%clk 0:01:01]}  Re8 {[%clk 0:01:35]} 24. Rb5 {[%clk 0:00:59]}  Rxc3 {[%clk 0:01:33]} 25. Rxd5 {[%clk 0:00:57]}  Ne6 {[%clk 0:01:26]} 26. Bh6 {[%clk 0:00:54]}  Rc2 {[%clk 0:01:19]} 27. a4 {[%clk 0:00:47]}  Rc4 {[%clk 0:01:14]} 28. a5 {[%clk 0:00:46]}  Rxd4 {[%clk 0:01:12]} 29. g3 {[%clk 0:00:37]}  Rxd5 {[%clk 0:01:08]} 30. Rxd5 {[%clk 0:00:37]}  Rd8 {[%clk 0:01:08]} 31. Rb5 {[%clk 0:00:29]}  Rd7 {[%clk 0:01:08]} 32. f4 {[%clk 0:00:14]}  f6 {[%clk 0:00:57]} 33. Rf5 {[%clk 0:00:10]}  Rf7 {[%clk 0:00:37]} 34. Rd5 {[%clk 0:00:10]}  Nxg7 {[%clk 0:00:31]} 35. Rd8+ {[%clk 0:00:10]}  Rf8 {[%clk 0:00:31]} 36. Rd7 {[%clk 0:00:10]}  Rf7 {[%clk 0:00:31]} 37. Rd8+ {[%clk 0:00:11]}  Rf8 {[%clk 0:00:32]} 38. Rd5 {[%clk 0:00:07]}  Re8 {[%clk 0:00:23]} 39. Bxg7 {[%clk 0:00:07]}  Kxg7 {[%clk 0:00:24]} 40. Rd7+ {[%clk 0:00:08]}  Kg6 {[%clk 0:00:25]} 41. Rxb7 {[%clk 0:00:08]}  Kf5 {[%clk 0:00:22]} 42. Rxa7 {[%clk 0:00:07]}  Kg4 {[%clk 0:00:22]} 43. Kf2 {[%clk 0:00:08]}  h5 {[%clk 0:00:22]} 44. Rg7+ {[%clk 0:00:06]}  Kh3 {[%clk 0:00:22]} 45. Rh7 {[%clk 0:00:07]}  Kg4 {[%clk 0:00:22]} 46. h3+ {[%clk 0:00:07]}  Kf5 {[%clk 0:00:22]} 47. Rxh5+ {[%clk 0:00:08]}  Ke4 {[%clk 0:00:22]} 48. Rb5 {[%clk 0:00:08]} 1-0


[Site "https://www.chess.com"]

[Event "Early Titled Tuesday Blitz | February 8 2022"]
[White "Ozer, Omer Faruk"]
[Black "Baches Garcia, Guillermo"]
[WhiteFideId "6354564"]
[BlackFideId "2209764"]
[WhiteElo "2050"]
[BlackElo "2448"]
[Result "0-1"]
[Round "05"]
[TimeControl "180+1"]
[Date "2022.02.08"]
[WhiteClock "0:01:04"]
[BlackClock "0:00:19"]

1. d4 {[%clk 0:03:00]}  Nf6 {[%clk 0:02:59]} 2. Nf3 {[%clk 0:03:00]}  e6 {[%clk 0:02:59]} 3. Bg5 {[%clk 0:02:59]}  h6 {[%clk 0:02:59]} 4. Bh4 {[%clk 0:02:59]}  d6 {[%clk 0:02:59]} 5. Nbd2 {[%clk 0:02:58]}  g5 {[%clk 0:02:59]} 6. Bg3 {[%clk 0:02:58]}  Nh5 {[%clk 0:02:59]} 7. e4 {[%clk 0:02:56]}  Bg7 {[%clk 0:02:59]} 8. c3 {[%clk 0:02:55]}  Qe7 {[%clk 0:02:59]} 9. Bd3 {[%clk 0:02:52]}  Nd7 {[%clk 0:02:58]} 10. Qe2 {[%clk 0:02:51]}  a6 {[%clk 0:02:53]} 11. Nb3 {[%clk 0:02:48]}  b6 {[%clk 0:02:41]} 12. Nfd2 {[%clk 0:02:46]}  Nxg3 {[%clk 0:02:36]} 13. hxg3 {[%clk 0:02:46]}  c5 {[%clk 0:02:31]} 14. a4 {[%clk 0:02:33]}  Bb7 {[%clk 0:02:24]} 15. dxc5 {[%clk 0:02:11]}  Nxc5 {[%clk 0:02:11]} 16. Nxc5 {[%clk 0:02:10]}  bxc5 {[%clk 0:02:08]} 17. Nc4 {[%clk 0:02:01]}  O-O {[%clk 0:01:58]} 18. O-O {[%clk 0:02:00]}  Rab8 {[%clk 0:01:42]} 19. f4 {[%clk 0:01:58]}  d5 {[%clk 0:01:17]} 20. exd5 {[%clk 0:01:57]}  Bxd5 {[%clk 0:01:15]} 21. f5 {[%clk 0:01:56]}  Rbe8 {[%clk 0:00:57]} 22. Ne3 {[%clk 0:01:53]}  exf5 {[%clk 0:00:48]} 23. Nxd5 {[%clk 0:01:50]}  Qxe2 {[%clk 0:00:48]} 24. Bxe2 {[%clk 0:01:50]}  Rxe2 {[%clk 0:00:49]} 25. Rf2 {[%clk 0:01:49]}  Rfe8 {[%clk 0:00:45]} 26. Raf1 {[%clk 0:01:41]}  Rxf2 {[%clk 0:00:44]} 27. Rxf2 {[%clk 0:01:40]}  Re1+ {[%clk 0:00:44]} 28. Kh2 {[%clk 0:01:39]}  f4 {[%clk 0:00:39]} 29. gxf4 {[%clk 0:01:39]}  gxf4 {[%clk 0:00:39]} 30. b4 {[%clk 0:01:26]}  cxb4 {[%clk 0:00:34]} 31. cxb4 {[%clk 0:01:27]}  Ra1 {[%clk 0:00:28]} 32. a5 {[%clk 0:01:24]}  Be5 {[%clk 0:00:27]} 33. Kh3 {[%clk 0:01:20]}  Rd1 {[%clk 0:00:24]} 34. Ne7+ {[%clk 0:01:08]}  Kg7 {[%clk 0:00:22]} 35. Nc6 {[%clk 0:01:05]}  h5 {[%clk 0:00:20]} 36. Nxe5 {[%clk 0:01:04]}  Rh1# {[%clk 0:00:19]} 0-1


[Site "https://www.chess.com"]